[Event "Irish Championship 2026"]
[Site "Talbot Hotel Stillorgan, Co.Dublin, IE"]
[Date "2026.08.08"]
[Round "8"]
[White "Nichenametla V, Advaith"]
[Black "Biswal, Saiansh"]
[Result "1-0"]
[Board "82"]
[TimeControl "40/5400+30:1800+30"]
[WhiteFideId "2516896"]
[BlackFideId "2518155"]
[WhiteElo "1943"]
[BlackElo "1824"]
[WhiteClock "0:59:47"]
[BlackClock "0:44:16"]
[Variant "Standard"]
[EndDate "2026.08.08"]
[EndTime "15:42:34"]

1. e4 {[%clk 1:30:34]}  c6 {[%clk 1:30:56]} 2. d4 {[%clk 1:30:54]}  d5 {[%clk 1:31:19]} 3. exd5 {[%clk 1:31:16]}  cxd5 {[%clk 1:31:41]}
4. Bd3 {[%clk 1:31:36]}  Nc6 {[%clk 1:31:51]} 5. c3 {[%clk 1:31:56]}  Nf6 {[%clk 1:32:05]} 6. h3 {[%clk 1:32:20]}  g6 {[%clk 1:32:17]}
7. Nf3 {[%clk 1:32:07]}  Bg7 {[%clk 1:32:30]} 8. Bf4 {[%clk 1:31:54]}  e6 {[%clk 1:30:51]} 9. Nbd2 {[%clk 1:29:27]}  O-O {[%clk 1:29:09]}
10. Qe2 {[%clk 1:25:22]}  a6 {[%clk 1:27:58]} 11. O-O {[%clk 1:21:40]}  Re8 {[%clk 1:26:33]} 12. Ne5 {[%clk 1:19:50]}  Nh5 {[%clk 1:24:36]}
13. Bh2 {[%clk 1:18:51]}  Bxe5 {[%clk 1:22:00]} 14. dxe5 {[%clk 1:18:21]}  Ng7 {[%clk 1:22:19]} 15. Nf3 {[%clk 1:17:38]}  b5 {[%clk 1:21:43]}
16. Bf4 {[%clk 1:16:51]}  Bb7 {[%clk 1:20:03]} 17. Bg5 {[%clk 1:12:47]}  Qb6 {[%clk 1:15:25]} 18. Qd2 {[%clk 1:05:28]}  Ne7 {[%clk 1:09:46]}
19. Bf6 {[%clk 1:00:34]}  Rac8 {[%clk 0:52:34]} 20. g4 {[%clk 0:59:20]}  Red8 {[%clk 0:45:03]} 21. Qh6 {[%clk 0:59:29]}  Kf8 {[%clk 0:45:28]}
22. Qxg7+ {[%clk 0:59:21]}  Ke8 {[%clk 0:45:53]} 23. Ng5 {[%clk 0:59:17]}  Rc7 {[%clk 0:45:05]} 24. Qxf7+ {[%clk 0:59:24]}  Kd7 {[%clk 0:44:16]}
25. Qxe7+ {[%clk 0:59:47]} 1-0

[Event "Irish Championship 2026"]
[Site "Talbot Hotel Stillorgan, Co.Dublin, IE"]
[Date "2026.08.08"]
[Round "8"]
[White "Lorigan, Maxim"]
[Black "Voogt, Declan"]
[Result "1-0"]
[Board "83"]
[TimeControl "40/5400+30:1800+30"]
[WhiteFideId "2518198"]
[BlackFideId "2517388"]
[WhiteElo "1762"]
[BlackElo "1849"]
[WhiteClock "0:20:29"]
[BlackClock "1:17:07"]
[Variant "Standard"]
[EndDate "2026.08.08"]
[EndTime "15:56:19"]

1. d4 {[%clk 1:27:12]}  Nf6 {[%clk 1:30:56]} 2. c4 {[%clk 1:27:20]}  g6 {[%clk 1:30:46]} 3. Nf3 {[%clk 1:26:57]}  Bg7 {[%clk 1:31:09]}
4. Nc3 {[%clk 1:27:03]}  d5 {[%clk 1:31:33]} 5. cxd5 {[%clk 1:25:43]}  Nxd5 {[%clk 1:31:55]} 6. e4 {[%clk 1:25:27]}  Nxc3 {[%clk 1:32:19]}
7. bxc3 {[%clk 1:25:50]}  c5 {[%clk 1:32:44]} 8. Be3 {[%clk 1:20:21]}  O-O {[%clk 1:33:11]} 9. h3 {[%clk 1:17:49]}  Nc6 {[%clk 1:33:04]}
10. Qd2 {[%clk 1:15:43]}  Qa5 {[%clk 1:32:37]} 11. Bc4 {[%clk 1:11:52]}  Rd8 {[%clk 1:32:17]} 12. Rd1 {[%clk 1:11:11]}  b5 {[%clk 1:27:49]}
13. Bd5 {[%clk 0:56:07]}  Bd7 {[%clk 1:27:22]} 14. Bh6 {[%clk 0:48:28]}  e6 {[%clk 1:24:15]} 15. Bxg7 {[%clk 0:45:35]}  Kxg7 {[%clk 1:19:34]}
16. Bxc6 {[%clk 0:38:57]}  Bxc6 {[%clk 1:20:02]} 17. Qc2 {[%clk 0:37:15]}  cxd4 {[%clk 1:19:00]} 18. Nxd4 {[%clk 0:34:06]}  Be8 {[%clk 1:17:17]}
19. O-O {[%clk 0:31:39]}  Rac8 {[%clk 1:17:07]} 20. Qb2 {[%clk 0:30:48]}  Qxc3 {[%clk 1:15:59]} 21. Qxc3 {[%clk 0:30:15]}  Rxc3 {[%clk 1:15:50]}
22. Nxe6+ {[%clk 0:30:21]}  fxe6 {[%clk 1:16:01]} 23. Rxd8 {[%clk 0:30:45]}  Kf7 {[%clk 1:15:50]} 24. Ra8 {[%clk 0:29:42]}  Ra3 {[%clk 1:16:14]}
25. Rc1 {[%clk 0:29:12]}  Rxa2 {[%clk 1:15:10]} 26. Rc7+ {[%clk 0:28:59]}  Kf6 {[%clk 1:15:27]} 27. Rxe8 {[%clk 0:26:39]}  b4 {[%clk 1:15:46]}
28. f4 {[%clk 0:22:51]}  e5 {[%clk 1:16:01]} 29. fxe5+ {[%clk 0:20:56]}  Kg5 {[%clk 1:16:29]} 30. Rb8 {[%clk 0:20:34]}  a5 {[%clk 1:16:46]}
31. e6 {[%clk 0:20:27]}  Kf4 {[%clk 1:17:07]} 32. Rf8+ {[%clk 0:20:29]} 1-0

[Event "Irish Championship 2026"]
[Site "Talbot Hotel Stillorgan, Co.Dublin, IE"]
[Date "2026.08.08"]
[Round "8"]
[White "Thomas Boby, Aiden"]
[Black "Heron, Lorcan"]
[Result "0-1"]
[Board "84"]
[TimeControl "40/5400+30:1800+30"]
[WhiteFideId "2535688"]
[BlackFideId "2529343"]
[WhiteElo "1978"]
[BlackElo "1926"]
[WhiteClock "0:04:25"]
[BlackClock "0:00:58"]
[Variant "Standard"]
[EndDate "2026.08.08"]
[EndTime "17:40:01"]

1. e4 {[%clk 1:30:58]}  e5 {[%clk 1:30:40]} 2. Nf3 {[%clk 1:31:18]}  Nc6 {[%clk 1:31:07]} 3. Bc4 {[%clk 1:31:41]}  Nf6 {[%clk 1:31:34]}
4. d3 {[%clk 1:32:02]}  h6 {[%clk 1:32:01]} 5. c3 {[%clk 1:32:20]}  d6 {[%clk 1:32:29]} 6. Nbd2 {[%clk 1:31:45]}  g6 {[%clk 1:29:46]}
7. h3 {[%clk 1:27:03]}  Bg7 {[%clk 1:30:03]} 8. O-O {[%clk 1:27:21]}  g5 {[%clk 1:30:06]} 9. Re1 {[%clk 1:19:45]}  g4 {[%clk 1:25:05]}
10. hxg4 {[%clk 1:17:39]}  Bxg4 {[%clk 1:24:56]} 11. Qb3 {[%clk 1:17:26]}  O-O {[%clk 1:07:32]} 12. Nh2 {[%clk 1:12:52]}  Bd7 {[%clk 0:58:36]}
13. Qc2 {[%clk 1:10:40]}  Kh8 {[%clk 0:52:05]} 14. b4 {[%clk 1:06:15]}  Ng4 {[%clk 0:50:38]} 15. Nxg4 {[%clk 1:02:01]}  Bxg4 {[%clk 0:51:05]}
16. Nf1 {[%clk 1:01:54]}  Qh4 {[%clk 0:40:03]} 17. Be3 {[%clk 1:00:14]}  Bf6 {[%clk 0:31:25]} 18. Qd2 {[%clk 0:57:16]}  Kh7 {[%clk 0:19:31]}
19. Ng3 {[%clk 0:55:21]}  Ne7 {[%clk 0:19:18]} 20. d4 {[%clk 0:48:19]}  Rg8 {[%clk 0:17:44]} 21. Bxf7 {[%clk 0:46:32]}  Rg7 {[%clk 0:18:11]}
22. Bc4 {[%clk 0:46:44]}  Rf8 {[%clk 0:18:39]} 23. Be2 {[%clk 0:38:31]}  Be6 {[%clk 0:18:48]} 24. d5 {[%clk 0:36:44]}  Bc8 {[%clk 0:18:41]}
25. Bf3 {[%clk 0:35:19]}  Bg5 {[%clk 0:13:14]} 26. Bxg5 {[%clk 0:33:07]}  hxg5 {[%clk 0:13:07]} 27. Bd1 {[%clk 0:20:57]}  Kg8 {[%clk 0:10:24]}
28. Nh5 {[%clk 0:20:37]}  Rh7 {[%clk 0:09:53]} 29. g3 {[%clk 0:20:54]}  Qh3 {[%clk 0:09:25]} 30. Qxg5+ {[%clk 0:21:08]}  Kh8 {[%clk 0:08:28]}
31. Re3 {[%clk 0:20:44]}  Rg8 {[%clk 0:01:46]} 32. Qf6+ {[%clk 0:18:50]}  Rgg7 {[%clk 0:02:14]} 33. Bf3 {[%clk 0:13:21]}  Ng8 {[%clk 0:01:50]}
34. Qd8 {[%clk 0:11:45]}  Rxh5 {[%clk 0:02:07]} 35. Bxh5 {[%clk 0:11:38]}  Qxh5 {[%clk 0:02:33]} 36. Rae1 {[%clk 0:06:56]}  Rh7 {[%clk 0:01:28]}
37. Kf1 {[%clk 0:05:29]}  Bg4 {[%clk 0:01:24]} 38. Qh4 {[%clk 0:04:23]}  Qg6 {[%clk 0:01:54]} 39. Qd8 {[%clk 0:04:40]}  Qh5 {[%clk 0:02:11]}
40. Qh4 {[%clk 0:05:02]}  Qg6 {[%clk 0:02:39]} 41. Qd8 {[%clk 0:05:25]}  Rh2 {[%clk 0:00:44]} 42. Rc1 {[%clk 0:04:11]}  Rh1+ {[%clk 0:00:32]}
43. Kg2 {[%clk 0:04:26]}  Rd1 {[%clk 0:00:29]} 44. Rb1 {[%clk 0:04:25]}  Rc1 {[%clk 0:00:58]} 0-1

[Event "Irish Championship 2026"]
[Site "Talbot Hotel Stillorgan, Co.Dublin, IE"]
[Date "2026.08.08"]
[Round "8"]
[White "Braine, Harry"]
[Black "Doolin, Nemhain"]
[Result "1-0"]
[Board "85"]
[TimeControl "40/5400+30:1800+30"]
[WhiteFideId "2518570"]
[BlackFideId "2517230"]
[WhiteElo "1948"]
[BlackElo "1915"]
[WhiteClock "0:26:44"]
[BlackClock "0:03:43"]
[Variant "Standard"]
[EndDate "2026.08.08"]
[EndTime "17:05:55"]

1. e4 {[%clk 1:30:35]}  e6 {[%clk 1:30:52]} 2. d4 {[%clk 1:30:58]}  d5 {[%clk 1:31:19]} 3. Nc3 {[%clk 1:31:24]}  Be7 {[%clk 1:31:44]}
4. Bd3 {[%clk 1:31:48]}  c5 {[%clk 1:32:09]} 5. dxc5 {[%clk 1:32:12]}  Nf6 {[%clk 1:31:03]} 6. e5 {[%clk 1:32:35]}  Nfd7 {[%clk 1:31:28]}
7. Qg4 {[%clk 1:32:57]}  Nxe5 {[%clk 1:28:41]} 8. Qxg7 {[%clk 1:33:16]}  Nxd3+ {[%clk 1:27:30]} 9. cxd3 {[%clk 1:33:34]}  Bf6 {[%clk 1:27:34]}
10. Qg3 {[%clk 1:33:16]}  Nd7 {[%clk 1:25:10]} 11. Nge2 {[%clk 1:24:30]}  Nxc5 {[%clk 1:19:23]} 12. d4 {[%clk 1:22:54]}  Na6 {[%clk 1:11:20]}
13. Bf4 {[%clk 1:18:22]}  Bh4 {[%clk 1:05:32]} 14. Qe3 {[%clk 1:14:08]}  Nb4 {[%clk 0:58:32]} 15. Rc1 {[%clk 1:12:51]}  Qa5 {[%clk 0:49:49]}
16. O-O {[%clk 1:11:12]}  Rg8 {[%clk 0:45:56]} 17. a3 {[%clk 1:11:04]}  Nc6 {[%clk 0:45:04]} 18. Qd3 {[%clk 1:07:18]}  f5 {[%clk 0:36:27]}
19. Nb5 {[%clk 1:07:19]}  Bd8 {[%clk 0:34:22]} 20. Nd6+ {[%clk 1:05:14]}  Kd7 {[%clk 0:31:20]} 21. Qh3 {[%clk 0:57:54]}  Rg7 {[%clk 0:28:42]}
22. Qh6 {[%clk 0:55:28]}  Re7 {[%clk 0:27:17]} 23. Rfd1 {[%clk 0:42:22]}  Bc7 {[%clk 0:25:01]} 24. Rc5 {[%clk 0:34:38]}  Qa6 {[%clk 0:21:20]}
25. Nb5 {[%clk 0:34:22]}  Bb6 {[%clk 0:18:52]} 26. Nec3 {[%clk 0:29:22]}  Bxc5 {[%clk 0:09:02]} 27. dxc5 {[%clk 0:29:40]}  b6 {[%clk 0:09:13]}
28. Nxd5 {[%clk 0:27:16]}  exd5 {[%clk 0:07:27]} 29. Rxd5+ {[%clk 0:27:29]}  Ke8 {[%clk 0:07:44]} 30. Nd6+ {[%clk 0:27:00]}  Kd7 {[%clk 0:07:27]}
31. Nxc8+ {[%clk 0:26:33]}  Ke8 {[%clk 0:05:59]} 32. Qxc6+ {[%clk 0:26:35]}  Kf7 {[%clk 0:03:43]} 33. Rxf5+ {[%clk 0:26:44]} 1-0

[Event "Irish Championship 2026"]
[Site "Talbot Hotel Stillorgan, Co.Dublin, IE"]
[Date "2026.08.08"]
[Round "8"]
[White "Liu, Murray"]
[Black "Greenan, Darragh"]
[Result "1/2-1/2"]
[Board "86"]
[TimeControl "40/5400+30:1800+30"]
[WhiteFideId "2517191"]
[BlackFideId "2525607"]
[WhiteElo "1885"]
[BlackElo "1786"]
[WhiteClock "0:38:35"]
[BlackClock "0:38:13"]
[Variant "Standard"]
[EndDate "2026.08.08"]
[EndTime "16:06:43"]

1. e4 {[%clk 1:30:44]}  e6 {[%clk 1:30:00]} 2. d4 {[%clk 1:30:50]}  d5 {[%clk 1:30:25]} 3. e5 {[%clk 1:31:06]}  c5 {[%clk 1:30:51]}
4. c3 {[%clk 1:31:20]}  Nc6 {[%clk 1:31:07]} 5. Nf3 {[%clk 1:31:18]}  Qb6 {[%clk 1:30:57]} 6. Be2 {[%clk 1:31:26]}  cxd4 {[%clk 1:30:07]}
7. cxd4 {[%clk 1:31:43]}  Nge7 {[%clk 1:24:19]} 8. Na3 {[%clk 1:30:57]}  Nf5 {[%clk 1:22:54]} 9. Nc2 {[%clk 1:31:12]}  Bb4+ {[%clk 1:19:44]}
10. Kf1 {[%clk 1:01:16]}  Be7 {[%clk 1:09:59]} 11. g3 {[%clk 0:50:16]}  h5 {[%clk 1:02:01]} 12. h4 {[%clk 0:47:58]}  Bd7 {[%clk 0:56:03]}
13. Bd3 {[%clk 0:40:21]}  a5 {[%clk 0:39:08]} 14. Bxf5 {[%clk 0:38:35]}  exf5 {[%clk 0:38:13]} 15. Kg2 {[%clk 0:32:24]}  f6 {[%clk 0:38:00]}
16. Re1 {[%clk 0:32:21]}  O-O-O {[%clk 0:37:51]} 17. e6 {[%clk 0:32:18]}  Be8 {[%clk 0:37:43]} 18. a3 {[%clk 0:32:13]}  g5 {[%clk 0:38:13]} 1/2-1/2

[Event "Irish Championship 2026"]
[Site "Talbot Hotel Stillorgan, Co.Dublin, IE"]
[Date "2026.08.09"]
[Round "9"]
[White "Collins, Adam"]
[Black "Jessel, Stephen"]
[Result "1/2-1/2"]
[Board "61"]
[TimeControl "40/5400+30:1800+30"]
[WhiteFideId "2512300"]
[BlackFideId "628859"]
[WhiteElo "2340"]
[BlackElo "2364"]
[WhiteTitle "FM"]
[BlackTitle "FM"]
[WhiteClock "0:20:22"]
[BlackClock "0:06:59"]
[Variant "Standard"]
[EndDate "2026.08.09"]
[EndTime "12:54:28"]

1. Nf3 {[%clk 1:30:00]}  b6 {[%clk 1:29:35]} 2. g3 {[%clk 1:30:08]}  Bb7 {[%clk 1:29:50]} 3. Bg2 {[%clk 1:30:35]}  g6 {[%clk 1:27:51]}
4. O-O {[%clk 1:30:46]}  Bg7 {[%clk 1:28:15]} 5. d4 {[%clk 1:31:11]}  Nf6 {[%clk 1:24:06]} 6. c4 {[%clk 1:31:26]}  O-O {[%clk 1:24:14]}
7. d5 {[%clk 1:31:53]}  Na6 {[%clk 1:24:04]} 8. Nc3 {[%clk 1:31:28]}  Nc5 {[%clk 1:17:09]} 9. Qc2 {[%clk 1:26:10]}  c6 {[%clk 1:09:09]}
10. e4 {[%clk 1:16:44]}  cxd5 {[%clk 1:03:18]} 11. exd5 {[%clk 1:16:50]}  e6 {[%clk 1:02:33]} 12. Rd1 {[%clk 1:09:46]}  exd5 {[%clk 0:40:19]}
13. Nxd5 {[%clk 1:07:25]}  Nxd5 {[%clk 0:35:21]} 14. cxd5 {[%clk 1:07:51]}  Rc8 {[%clk 0:31:56]} 15. Bg5 {[%clk 1:00:43]}  Bf6 {[%clk 0:30:44]}
16. Bxf6 {[%clk 0:51:09]}  Qxf6 {[%clk 0:31:07]} 17. Rac1 {[%clk 0:50:55]}  Ba6 {[%clk 0:22:29]} 18. Qd2 {[%clk 0:47:04]}  Nd3 {[%clk 0:15:48]}
19. Rxc8 {[%clk 0:42:25]}  Rxc8 {[%clk 0:16:09]} 20. b3 {[%clk 0:31:55]}  Qc3 {[%clk 0:06:59]} 21. h4 {[%clk 0:20:22]} 1/2-1/2

[Event "Irish Championship 2026"]
[Site "Talbot Hotel Stillorgan, Co.Dublin, IE"]
[Date "2026.08.09"]
[Round "9"]
[White "Tureshbayev, Anuar"]
[Black "Barnes, Oliver"]
[Result "1/2-1/2"]
[Board "62"]
[TimeControl "40/5400+30:1800+30"]
[WhiteFideId "651081709"]
[BlackFideId "2517604"]
[WhiteElo "2250"]
[BlackElo "2107"]
[WhiteTitle "FM"]
[WhiteClock "0:42:38"]
[BlackClock "0:09:05"]
[Variant "Standard"]
[EndDate "2026.08.09"]
[EndTime "12:50:22"]

1. e4 {[%clk 1:13:29]}  e6 {[%clk 1:30:49]} 2. d4 {[%clk 1:13:53]}  d5 {[%clk 1:31:14]} 3. Nc3 {[%clk 1:14:21]}  Bb4 {[%clk 1:31:36]}
4. e5 {[%clk 1:14:48]}  c5 {[%clk 1:31:58]} 5. Bd2 {[%clk 1:15:16]}  Ne7 {[%clk 1:32:20]} 6. a3 {[%clk 1:15:43]}  Bxc3 {[%clk 1:31:57]}
7. Bxc3 {[%clk 1:16:04]}  b6 {[%clk 1:11:25]} 8. h4 {[%clk 1:16:29]}  Ba6 {[%clk 1:07:38]} 9. Bxa6 {[%clk 1:16:55]}  Nxa6 {[%clk 1:08:06]}
10. h5 {[%clk 1:17:19]}  h6 {[%clk 1:07:41]} 11. Nf3 {[%clk 1:14:53]}  Nb8 {[%clk 0:55:27]} 12. Qe2 {[%clk 1:13:12]}  Nbc6 {[%clk 0:50:23]}
13. O-O-O {[%clk 1:12:20]}  Qc7 {[%clk 0:50:22]} 14. g4 {[%clk 1:09:03]}  O-O-O {[%clk 0:46:55]} 15. Qe3 {[%clk 1:05:38]}  cxd4 {[%clk 0:40:30]}
16. Bxd4 {[%clk 1:05:36]}  Nxd4 {[%clk 0:38:20]} 17. Nxd4 {[%clk 1:03:48]}  Nc6 {[%clk 0:36:09]} 18. Nxc6 {[%clk 0:58:08]}  Qxc6 {[%clk 0:36:29]}
19. Rd4 {[%clk 0:56:35]}  Kb7 {[%clk 0:35:10]} 20. g5 {[%clk 0:55:42]}  Rc8 {[%clk 0:33:47]} 21. c3 {[%clk 0:56:05]}  Qc5 {[%clk 0:31:23]}
22. Rg1 {[%clk 0:53:09]}  hxg5 {[%clk 0:26:43]} 23. Rxg5 {[%clk 0:53:24]}  Rc7 {[%clk 0:26:31]} 24. Kb1 {[%clk 0:52:25]}  f6 {[%clk 0:21:55]}
25. Rg6 {[%clk 0:49:34]}  Rxh5 {[%clk 0:19:07]} 26. exf6 {[%clk 0:49:21]}  e5 {[%clk 0:17:59]} 27. fxg7 {[%clk 0:46:18]}  exd4 {[%clk 0:15:47]}
28. Qxd4 {[%clk 0:43:39]}  Qxd4 {[%clk 0:11:31]} 29. cxd4 {[%clk 0:44:06]}  Rc8 {[%clk 0:11:04]} 30. g8=Q {[%clk 0:44:32]}  Rxg8 {[%clk 0:11:27]}
31. Rxg8 {[%clk 0:45:00]}  Rf5 {[%clk 0:11:40]} 32. Rg7+ {[%clk 0:44:52]}  Kc6 {[%clk 0:11:25]} 33. Rxa7 {[%clk 0:45:03]}  Rxf2 {[%clk 0:11:50]}
34. Ra4 {[%clk 0:44:31]}  Rf1+ {[%clk 0:10:28]} 35. Ka2 {[%clk 0:44:36]}  Rh1 {[%clk 0:09:21]} 36. Rb4 {[%clk 0:44:44]}  Rh4 {[%clk 0:08:12]}
37. Kb3 {[%clk 0:42:20]}  Rh3+ {[%clk 0:07:51]} 38. Kc2 {[%clk 0:42:17]}  Rh2+ {[%clk 0:08:16]} 39. Kb3 {[%clk 0:41:44]}  Rh3+ {[%clk 0:08:44]}
40. Kc2 {[%clk 0:42:11]}  Rh2+ {[%clk 0:09:05]} 41. Kb3 {[%clk 0:42:38]} 1/2-1/2

[Event "Irish Championship 2026"]
[Site "Talbot Hotel Stillorgan, Co.Dublin, IE"]
[Date "2026.08.09"]
[Round "9"]
[White "Jacob Flynn"]
[Black "Brozynski, Patryk"]
[Result "1/2-1/2"]
[Board "63"]
[TimeControl "40/5400+30:1800+30"]
[BlackFideId "2512700"]
[WhiteElo "2289"]
[BlackElo "2224"]
[BlackTitle "CM"]
[WhiteClock "0:28:32"]
[BlackClock "0:16:57"]
[Variant "Standard"]
[EndDate "2026.08.09"]
[EndTime "12:37:53"]

1. e4 {[%clk 1:30:01]}  e6 {[%clk 1:29:58]} 2. d3 {[%clk 1:30:12]}  d5 {[%clk 1:30:22]} 3. Qe2 {[%clk 1:30:38]}  Be7 {[%clk 1:30:49]}
4. Nf3 {[%clk 1:31:05]}  Nf6 {[%clk 1:31:15]} 5. g3 {[%clk 1:31:32]}  O-O {[%clk 1:21:34]} 6. Bg2 {[%clk 1:31:49]}  b5 {[%clk 1:21:59]}
7. O-O {[%clk 1:30:03]}  c5 {[%clk 1:21:41]} 8. e5 {[%clk 1:28:57]}  Nfd7 {[%clk 1:22:07]} 9. Bf4 {[%clk 1:29:23]}  Nc6 {[%clk 1:19:11]}
10. h4 {[%clk 1:28:57]}  a5 {[%clk 1:16:31]} 11. Nbd2 {[%clk 1:23:37]}  a4 {[%clk 1:11:19]} 12. h5 {[%clk 1:06:15]}  h6 {[%clk 1:09:49]}
13. Bh3 {[%clk 0:52:09]}  a3 {[%clk 0:58:56]} 14. b3 {[%clk 0:50:36]}  Bb7 {[%clk 0:49:30]} 15. Kh2 {[%clk 0:42:10]}  Re8 {[%clk 0:32:24]}
16. Rg1 {[%clk 0:38:04]}  Nf8 {[%clk 0:31:59]} 17. g4 {[%clk 0:30:41]}  Nh7 {[%clk 0:32:12]} 18. Bg3 {[%clk 0:30:43]}  Qa5 {[%clk 0:25:24]}
19. Ne1 {[%clk 0:28:32]}  Qc3 {[%clk 0:16:57]} 1/2-1/2

[Event "Irish Championship 2026"]
[Site "Talbot Hotel Stillorgan, Co.Dublin, IE"]
[Date "2026.08.09"]
[Round "9"]
[White "Venkatesan, Kavin"]
[Black "Oisin O'Cuilleanain"]
[Result "1/2-1/2"]
[Board "64"]
[TimeControl "40/5400+30:1800+30"]
[WhiteFideId "2512602"]
[WhiteElo "2297"]
[BlackElo "2128"]
[WhiteTitle "FM"]
[WhiteClock "0:01:27"]
[BlackClock "0:32:04"]
[Variant "Standard"]
[EndDate "2026.08.09"]
[EndTime "13:09:43"]

1. c4 {[%clk 1:30:57]}  g6 {[%clk 1:30:25]} 2. d4 {[%clk 1:31:01]}  Nf6 {[%clk 1:30:49]} 3. Nf3 {[%clk 1:31:10]}  Bg7 {[%clk 1:31:15]}
4. g3 {[%clk 1:31:33]}  O-O {[%clk 1:31:34]} 5. Nc3 {[%clk 1:31:36]}  d5 {[%clk 1:31:51]} 6. Bg2 {[%clk 1:30:54]}  c5 {[%clk 1:28:59]}
7. dxc5 {[%clk 1:26:47]}  dxc4 {[%clk 1:26:41]} 8. Qa4 {[%clk 1:25:27]}  Na6 {[%clk 1:23:54]} 9. c6 {[%clk 1:11:11]}  Qb6 {[%clk 1:20:54]}
10. cxb7 {[%clk 1:04:23]}  Bxb7 {[%clk 1:21:01]} 11. O-O {[%clk 0:59:12]}  Rfc8 {[%clk 1:18:40]} 12. Be3 {[%clk 0:52:37]}  Qb4 {[%clk 1:16:03]}
13. Bd4 {[%clk 0:48:30]}  Qxa4 {[%clk 1:10:07]} 14. Nxa4 {[%clk 0:48:52]}  Nb4 {[%clk 1:09:51]} 15. Rfc1 {[%clk 0:46:56]}  Bh6 {[%clk 1:07:47]}
16. e3 {[%clk 0:45:37]}  Nd3 {[%clk 1:06:08]} 17. Rc2 {[%clk 0:39:23]}  Nd7 {[%clk 1:05:46]} 18. Rd1 {[%clk 0:34:30]}  e5 {[%clk 0:56:13]}
19. Nxe5 {[%clk 0:30:37]}  Bxg2 {[%clk 0:54:31]} 20. Nxd7 {[%clk 0:29:09]}  Bf3 {[%clk 0:53:54]} 21. Ra1 {[%clk 0:27:13]}  Bg7 {[%clk 0:51:37]}
22. Ndc5 {[%clk 0:23:02]}  Bxd4 {[%clk 0:45:49]} 23. exd4 {[%clk 0:23:23]}  Re8 {[%clk 0:45:43]} 24. Nxd3 {[%clk 0:20:26]}  cxd3 {[%clk 0:45:31]}
25. Rd2 {[%clk 0:20:50]}  Re2 {[%clk 0:37:40]} 26. Rxd3 {[%clk 0:19:53]}  Bc6 {[%clk 0:38:04]} 27. Nc5 {[%clk 0:10:18]}  Rae8 {[%clk 0:37:48]}
28. d5 {[%clk 0:09:43]}  Bb5 {[%clk 0:37:26]} 29. Rdd1 {[%clk 0:02:07]}  Rxb2 {[%clk 0:35:36]} 30. Rab1 {[%clk 0:02:45]}  Rxb1 {[%clk 0:34:49]}
31. Rxb1 {[%clk 0:03:13]}  Bc4 {[%clk 0:34:55]} 32. d6 {[%clk 0:03:29]}  Bxa2 {[%clk 0:33:15]} 33. Ra1 {[%clk 0:02:50]}  Bd5 {[%clk 0:31:38]}
34. d7 {[%clk 0:02:55]}  Rd8 {[%clk 0:31:56]} 35. Rxa7 {[%clk 0:02:42]}  Kf8 {[%clk 0:32:13]} 36. Rc7 {[%clk 0:01:31]}  Ke7 {[%clk 0:31:26]}
37. Rc8 {[%clk 0:00:48]}  Be6 {[%clk 0:30:54]} 38. Rxd8 {[%clk 0:00:56]}  Kxd8 {[%clk 0:31:20]} 39. Kg2 {[%clk 0:01:18]}  Bxd7 {[%clk 0:31:39]}
40. Nxd7 {[%clk 0:01:09]}  Kxd7 {[%clk 0:32:04]} 41. Kf3 {[%clk 0:01:27]} 1/2-1/2

[Event "Irish Championship 2026"]
[Site "Talbot Hotel Stillorgan, Co.Dublin, IE"]
[Date "2026.08.09"]
[Round "9"]
[White "Daly, Colm"]
[Black "Murray, Benjamin"]
[Result "0-1"]
[Board "65"]
[TimeControl "40/5400+30:1800+30"]
[WhiteFideId "2500434"]
[BlackFideId "2512963"]
[WhiteElo "2182"]
[BlackElo "2080"]
[WhiteTitle "FM"]
[WhiteClock "0:33:17"]
[BlackClock "0:22:41"]
[Variant "Standard"]
[EndDate "2026.08.09"]
[EndTime "14:06:34"]

1. e4 {[%clk 1:25:42]}  e6 {[%clk 1:27:35]} 2. d4 {[%clk 1:25:44]}  d5 {[%clk 1:27:59]} 3. Nc3 {[%clk 1:20:54]}  Bb4 {[%clk 1:27:00]}
4. e5 {[%clk 1:21:13]}  c5 {[%clk 1:27:25]} 5. a3 {[%clk 1:21:37]}  Bxc3+ {[%clk 1:27:49]} 6. bxc3 {[%clk 1:22:03]}  Ne7 {[%clk 1:28:14]}
7. Nf3 {[%clk 1:22:25]}  b6 {[%clk 1:28:32]} 8. Bb5+ {[%clk 1:22:20]}  Bd7 {[%clk 1:28:58]} 9. Bd3 {[%clk 1:22:41]}  Ba4 {[%clk 1:29:23]}
10. h4 {[%clk 1:21:58]}  c4 {[%clk 1:28:37]} 11. Bf1 {[%clk 1:22:01]}  h6 {[%clk 1:26:12]} 12. g3 {[%clk 1:21:41]}  Kd7 {[%clk 1:23:31]}
13. h5 {[%clk 1:22:03]}  Qg8 {[%clk 1:23:56]} 14. Ra2 {[%clk 1:22:19]}  Qh7 {[%clk 1:23:34]} 15. Bh3 {[%clk 1:21:38]}  Na6 {[%clk 1:21:39]}
16. O-O {[%clk 1:18:53]}  g6 {[%clk 1:17:43]} 17. Bg4 {[%clk 1:15:16]}  Rag8 {[%clk 1:14:13]} 18. Kg2 {[%clk 1:13:15]}  gxh5 {[%clk 1:08:30]}
19. Bxh5 {[%clk 1:06:19]}  Nf5 {[%clk 1:07:35]} 20. Rh1 {[%clk 1:06:14]}  Nb8 {[%clk 0:58:39]} 21. Nh4 {[%clk 0:59:05]}  Ne7 {[%clk 0:54:55]}
22. Re1 {[%clk 0:54:44]}  Rg7 {[%clk 0:52:41]} 23. Kh2 {[%clk 0:42:15]}  Nbc6 {[%clk 0:43:37]} 24. Ng2 {[%clk 0:42:27]}  Nf5 {[%clk 0:42:17]}
25. Nf4 {[%clk 0:40:11]}  Rg5 {[%clk 0:38:01]} 26. Rh1 {[%clk 0:37:28]}  Ng7 {[%clk 0:29:46]} 27. Kg2 {[%clk 0:29:17]}  Qf5 {[%clk 0:17:02]}
28. Bf3 {[%clk 0:28:28]}  Ne7 {[%clk 0:15:09]} 29. Nh5 {[%clk 0:23:03]}  Nxh5 {[%clk 0:14:45]} 30. Bxg5 {[%clk 0:16:59]}  Nxg3 {[%clk 0:13:12]}
31. Bf6 {[%clk 0:16:06]}  Nxh1 {[%clk 0:14:46]} 32. Bxh8 {[%clk 0:16:18]}  Ng6 {[%clk 0:10:44]} 33. Bf6 {[%clk 0:16:46]}  Nf4+ {[%clk 0:08:03]}
34. Kxh1 {[%clk 0:17:13]}  Nd3 {[%clk 0:07:36]} 35. Qe2 {[%clk 0:09:02]}  Nc1 {[%clk 0:07:45]} 36. Bg4 {[%clk 0:09:08]}  Qf4 {[%clk 0:06:27]}
37. Qf3 {[%clk 0:02:34]}  Qxf3+ {[%clk 0:06:52]} 38. Bxf3 {[%clk 0:03:02]}  Nxa2 {[%clk 0:07:14]} 39. Bh5 {[%clk 0:03:30]}  Ke8 {[%clk 0:07:18]}
40. Bg7 {[%clk 0:02:45]}  Nxc3 {[%clk 0:07:31]} 41. Bxh6 {[%clk 0:03:00]}  Bxc2 {[%clk 0:07:41]} 42. Kg2 {[%clk 0:03:12]}  Nb5 {[%clk 0:04:19]}
43. Be3 {[%clk 0:03:33]}  Nxa3 {[%clk 0:03:46]} 44. Kg3 {[%clk 0:04:01]}  b5 {[%clk 0:02:04]} 45. Bd2 {[%clk 0:04:30]}  Ba4 {[%clk 0:01:32]}
46. f4 {[%clk 0:04:53]}  Nb1 {[%clk 0:01:21]} 47. Bb4 {[%clk 0:04:56]}  c3 {[%clk 0:01:37]} 48. f5 {[%clk 0:05:15]}  Bc2 {[%clk 0:27:39]}
49. fxe6 {[%clk 0:32:08]}  Bg6 {[%clk 0:28:02]} 50. exf7+ {[%clk 0:32:36]}  Kxf7 {[%clk 0:23:46]} 51. e6+ {[%clk 0:32:58]}  Kf6 {[%clk 0:24:08]}
52. Bxg6 {[%clk 0:32:07]}  Kxg6 {[%clk 0:24:31]} 53. Be7 {[%clk 0:31:59]}  Kf5 {[%clk 0:22:15]} 54. Bg5 {[%clk 0:32:24]}  Kxe6 {[%clk 0:22:40]}
55. Kf2 {[%clk 0:32:45]}  b4 {[%clk 0:21:59]} 56. Ke2 {[%clk 0:33:12]}  b3 {[%clk 0:22:08]} 57. Kd3 {[%clk 0:33:30]}  b2 {[%clk 0:22:16]}
58. Be7 {[%clk 0:32:57]}  Kxe7 {[%clk 0:22:18]} 59. Kc2 {[%clk 0:33:17]}  Na3+ {[%clk 0:22:41]} 0-1